Cogmind - Beta 9.6 @@@ ROGUE MODE // 2020.07.20 @ 03:15:06 // AFD2020/Player2 Player: Hermelin Result: Destroyed by as-97454 with Assembled Heavy Rifle Performance ------------- Evolutions (0) 0 Regions Visited (4) 800 Robots Destroyed (12) 60 Value Destroyed (265) 265 Prototype IDs (3) 60 Alien Tech Used (0) 0 Bonus (-1058) -1058 TOTAL SCORE: 127 Bonus ------- Follower Combat Kills 330 Friendly Fire -1388 Cogmind --------- Core Integrity 0/250 Matter 63/300 Energy 290/290 System Corruption 0% Temperature Cool (102) Movement Treading (160) Location -9/Mines Parts ------- > --- POWER (1) -------- Improved Deuterium Engine > --- PROPULSION (2) --- Light Treads Light Treads > --- UTILITY (2) ------ Medium Storage Unit Medium Storage Unit > --- WEAPON (2) ------- Medium Laser YI-UF0's Doublenader > --- INVENTORY (12) --- Hover Unit Gravmag System Advanced Heat Sink Coolant Injector Small Storage Unit Medium Battery (200) Weapon Shielding Light Armor Plating Light Armor Plating Light Assault Rifle Mini Grenade Launcher Mini Grenade Launcher Peak State ------------ > --- POWER ------------ Improved Deuterium Engine > --- PROPULSION ------- Light Treads Light Treads > --- UTILITY ---------- Medium Storage Unit Medium Storage Unit > --- WEAPON ----------- Medium Laser YI-UF0's Doublenader > --- INVENTORY -------- Hover Unit Gravmag System Advanced Heat Sink Coolant Injector Small Storage Unit Medium Battery Weapon Shielding Light Armor Plating Light Armor Plating Light Assault Rifle Mini Grenade Launcher Mini Grenade Launcher [Rating: 15] Favorites ----------- Power Improved Deuterium Engine Engine Improved Deuterium Engine Propulsion Hover Unit Treads Light Treads Wheel Wheel Hover Unit Hover Unit Utility Small Storage Unit Storage Small Storage Unit Weapon Medium Laser Energy Gun Medium Laser Ballistic Gun Light Assault Rifle Launcher YI-UF0's Doublenader Build | -11 -10 -10 -10 -9 ------- Run | Scr Mat Min Exi Min Slots Evolved . | . . . . . Power . | . . . . . Propulsion . | . . . . . Utility . | . . . . . Weapon . | . . . . . Parts Attached 21 | 8 3 1 4 5 Power 4 | 2 1 1 . . Engine 4 | 2 1 1 . . Core . | . . . . . Reactor . | . . . . . Propulsion 10 | 2 2 . 2 4 Treads 4 | . . . 2 2 Leg . | . . . . . Wheel 2 | 2 . . . . Hover 4 | . 2 . . 2 Flight . | . . . . . Utility 4 | 2 . . 2 . Device . | . . . . . Storage 4 | 2 . . 2 . Processor . | . . . . . Hackware . | . . . . . Protection . | . . . . . Artifact . | . . . . . Weapon 3 | 2 . . . 1 Energy Gun 1 | 1 . . . . Energy Cannon . | . . . . . Ballistic Gun 1 | 1 . . . . Ballistic Cannon . | . . . . . Launcher 1 | . . . . 1 Special Weapon . | . . . . . Impact Weapon . | . . . . . Slashing Weapon . | . . . . . Piercing Weapon . | . . . . . Special Melee Weapon . | . . . . . Unidentified Prototypes . | . . . . . Parts Lost . | . . . . . Power . | . . . . . Propulsion . | . . . . . Utility . | . . . . . Weapon . | . . . . . Highest Loss Streak . | . . . . . Average Slot Usage (%) 100 | . 100 100 100 100 Engine 14 | . 14 14 14 14 Treads 6 | . . . 9 26 Wheel 2 | . 15 . . . Hover 19 | . 12 28 18 2 Storage 28 | . 28 28 28 28 Energy Gun 14 | . 14 14 14 14 Ballistic Gun 13 | . 14 14 14 10 Naked Turns . | . . . . . Heaviest Build 34 | 16 16 21 29 34 Greatest Support 40 | 26 26 12 40 40 Greatest Overweight (x) 2 | . 2 1 1 1 Average Overweight (x) . | . . 1 . . Largest Inventory Capacity 12 | 8 8 8 12 12 Average Capacity 8 | 6 8 8 9 12 Most Carried 12 | 6 8 8 10 12 Average Carried 8 | 2 7 8 8 11 Final Capacity 12 | 8 8 8 12 12 Final Carried 12 | 6 8 8 10 12 Class Distribution -------------------- 100% | Mutant Dominant Class ---------------- Mutant | -10/Materials Mutant | -10/Mines Mutant | -10/Exiles Mutant | -9/Mines Resources | -11 -10 -10 -10 -9 ----------- Run | Scr Mat Min Exi Min Matter Collected 353 | 283 13 54 . 3 Remotely . | . . . . . Salvage Created 349 | 60 36 241 . 12 Parts 16 | 3 5 8 . . Haulers Intercepted . | . . . . . Recyclers Shooed . | . . . . . Parts Field Recycled . | . . . . . Retrieved Matter . | . . . . . Parts Self-Destructed . | . . . . . Prevented . | . . . . . Kills | -11 -10 -10 -10 -9 ------- Run | Scr Mat Min Exi Min Combat Hostiles Destroyed 8 | . 1 3 . 4 Guns 4 | . 1 3 . . AOE 4 | . . . . 4 Classes Destroyed 5 | 1 2 1 . 1 Worker 1 | . . 1 . . Recycler 1 | 1 . . . . Watcher 1 | . 1 . . . Grunt 4 | . 1 3 . . Assembled 4 | . . . . 4 Best Kill Streak 3 | 1 1 2 . 3 Combat Bots Only 3 | . 1 2 . 3 Max Kills in Single Turn 2 | 1 1 1 . 2 Gunslinging . | . . . . . Exploded 2 | . . . . 2 Melee . | . . . . . Uniques/NPCs Destroyed 1 | . . 1 . . YI-UF0 (-10/Mines) Combat | -11 -10 -10 -10 -9 -------- Run | Scr Mat Min Exi Min Damage Taken 116 | . . 39 . 77 Core 54 | . . 29 . 25 Absorbed by Shields . | . . . . . Core Remaining (%) 100 | 100 . . . . Volleys Fired 36 | 3 4 23 . 6 Largest 2 | 2 2 2 . 1 Hottest 70 | 70 70 70 . 70 Shots Fired 66 | 6 8 46 . 6 Gun 60 | 6 8 46 . . Cannon . | . . . . . Launcher 6 | . . . . 6 Special . | . . . . . Kinetic 30 | 3 4 23 . . Thermal 30 | 3 4 23 . . Explosive 6 | . . . . 6 Electromagnetic . | . . . . . Robot Hit Streak 12 | 3 4 12 . 2 Robot Miss Streak 2 | 1 2 2 . 2 Penetration Max . | . . . . . Secondary Targets . | . . . . . Shots Hit Robots 49 | 5 4 35 . 5 Core Hits 26 | 2 2 12 . 10 Critical Hits 1 | . . 1 . . Critical Kills 1 | . . 1 . . Critical Parts Destroyed . | . . . . . Melee Attacks . | . . . . . Impact . | . . . . . Slashing . | . . . . . Piercing . | . . . . . Sneak Attacks . | . . . . . Combat Hostiles . | . . . . . Follow-up Attacks . | . . . . . Damage Inflicted 868 | 63 48 380 . 377 Guns 491 | 63 48 380 . . Cannons . | . . . . . Explosions 377 | . . . . 377 Melee . | . . . . . Ramming . | . . . . . Kinetic 163 | 25 10 128 . . Thermal 328 | 38 38 252 . . Explosive 377 | . . . . 377 Electromagnetic . | . . . . . Impact . | . . . . . Slashing . | . . . . . Piercing . | . . . . . Highest Corruption . | . . . . . Average Corruption . | . . . . . Corruption Purged . | . . . . . Overload Shots . | . . . . . Overflow Damage . | . . . . . Projectiles . | . . . . . Explosions . | . . . . . Melee . | . . . . . Knockbacks . | . . . . . Impact . | . . . . . Kinetic . | . . . . . Secondary . | . . . . . Self-Inflicted Damage 18 | . . . . 18 Shots 1 | . . . . 1 Rammed . | . . . . . Targets Rammed . | . . . . . Kicked . | . . . . . Crushed . | . . . . . Highest Temperature 125 | 70 50 125 . 102 Average Temperature 40 | 40 23 41 . 45 Received Heat Transfer 21 | . . 21 . . Siege Activations . | . . . . . Robots Corrupted . | . . . . . Combat Hostiles . | . . . . . Parts Fried . | . . . . . Impact Corruptions . | . . . . . Robots Melted . | . . . . . Combat Hostiles . | . . . . . Parts Melted . | . . . . . Heat Transferred 962 | 111 111 740 . . Parts Sabotaged . | . . . . . Parts Stolen . | . . . . . Parts Stripped . | . . . . . Power Chain Reactions . | . . . . . Missiles Intercepted . | . . . . . Alert | -11 -10 -10 -10 -9 ------- Run | Scr Mat Min Exi Min Peak Influence 313 | 5 313 241 . . Average Influence 108 | 2 159 136 . . Maximum Alert Level 1 | . 1 1 . . Low Security (%) 83 | 100 62 87 . 100 Level 1 16 | . 37 12 . . Level 2 . | . . . . . Level 3 . | . . . . . Level 4 . | . . . . . Level 5 . | . . . . . High Security . | . . . . . Max Security . | . . . . . Squads Dispatched 3 | . 2 . . 1 Investigation 2 | . 1 . . 1 Extermination . | . . . . . Reinforcement 1 | . 1 . . . Assault . | . . . . . Garrison . | . . . . . Intercept . | . . . . . Construction Impeded . | . . . . . Haulers Reinforced . | . . . . . Stealth | -11 -10 -10 -10 -9 --------- Run | Scr Mat Min Exi Min Distress Signals . | . . . . . Communications Jammed . | . . . . . Distress Signals . | . . . . . Times Spotted 24 | . 15 4 . 5 Peak Tracking Total 4 | . 3 2 . 4 Tactical Retreats . | . . . . . Traps | -11 -10 -10 -10 -9 ------- Run | Scr Mat Min Exi Min Traps Triggered . | . . . . . Indirectly . | . . . . . Trap Hack Attempts . | . . . . . Triggered . | . . . . . Disarmed . | . . . . . Reprogrammed . | . . . . . Reused . | . . . . . Traps Extracted . | . . . . . Installed . | . . . . . Triggered . | . . . . . Machines | -11 -10 -10 -10 -9 ---------- Run | Scr Mat Min Exi Min Machines Disabled 9 | . 9 . . . Max in Single Turn . | . . . . . Machines Sabotaged . | . . . . . Garrisons Compromised . | . . . . . Overloaded Fab Kills . | . . . . . Fab Network Shutdowns . | . . . . . Hacking | -11 -10 -10 -10 -9 --------- Run | Scr Mat Min Exi Min Machines Accessed 6 | . 2 . 3 1 Terminals 2 | . 2 . . . Fabricators . | . . . . . Repair Stations . | . . . . . Recycling Units . | . . . . . Scanalyzers . | . . . . . Garrison Access . | . . . . . Total Hacks 10 | . 6 . 3 1 Successful 7 | . 3 . 3 1 Failed 3 | . 3 . . . Catastrophic . | . . . . . Database Lockouts . | . . . . . Manual . | . . . . . Terminals 6 | . 6 . . . Fabricators . | . . . . . Repair Stations . | . . . . . Recycling Units . | . . . . . Scanalyzers . | . . . . . Garrison Access . | . . . . . Terminal Hacks 7 | . 3 . 3 1 Record 3 | . . . 3 . Robot Analysis 1 | . 1 . . . Prototype ID Bank 1 | . 1 . . . Open Door 1 | . . . . 1 Unreport Threat 1 | . 1 . . . Fabricator Hacks . | . . . . . Repair Station Hacks . | . . . . . Recycling Unit Hacks . | . . . . . Scanalyzer . | . . . . . Garrison Access Hacks . | . . . . . Unauthorized Hacks . | . . . . . Terminals . | . . . . . Fabricators . | . . . . . Repair Stations . | . . . . . Recycling Units . | . . . . . Scanalyzers . | . . . . . Garrison Access . | . . . . . Data Cores Recovered . | . . . . . Used . | . . . . . Hacking Detections 2 | . 2 . . . Full Trace Events 1 | . 1 . . . Feedback Events . | . . . . . Feedback Blocked . | . . . . . Robot Schematics Acquired . | . . . . . Robots Built . | . . . . . Matter . | . . . . . Time . | . . . . . Total Robot Build Rating . | . . . . . Part Schematics Acquired . | . . . . . Parts Built . | . . . . . Matter . | . . . . . Time . | . . . . . Total Part Build Rating . | . . . . . Parts Repaired . | . . . . . Time . | . . . . . Parts Recycled . | . . . . . Recycled Matter . | . . . . . Retrieved Matter . | . . . . . Retrieved Components . | . . . . . Parts Scanalyzed . | . . . . . Part Schematics Acquired . | . . . . . Parts Damaged . | . . . . . Bothacking | -11 -10 -10 -10 -9 ------------ Run | Scr Mat Min Exi Min Used RIF Installer . | . . . . . Robots Hacked . | . . . . . Non-combat . | . . . . . Combat . | . . . . . Robot Hacks Applied . | . . . . . Relay Couplers Released . | . . . . . Robots Rewired . | . . . . . Allies Hacked . | . . . . . Hacks Repelled . | . . . . . Allies | -11 -10 -10 -10 -9 -------- Run | Scr Mat Min Exi Min Total Allies 1 | . 1 . . . Largest Group 1 | . 1 1 1 1 Highest-Rated Group 64 | . 59 60 60 64 Highest-Rated Ally 64 | . 59 60 60 64 Total Orders . | . . . . . Ally Attacks 24 | . 19 3 . 2 Total Damage 2278 | . 2006 219 . 53 Kills 17 | . 15 1 . 1 Allies Corrupted . | . . . . . Allies Melted . | . . . . . Intel | -11 -10 -10 -10 -9 ------- Run | Scr Mat Min Exi Min Robot Analysis Total 1 | . 1 . . . Derelict Logs Recovered 1 | . . 1 . . Drone Launches . | . . . . . Drone Recoveries . | . . . . . Exploration | -11 -10 -10 -10 -9 ------------- Run | Scr Mat Min Exi Min Turns Passed 1615 | 77 228 442 722 146 Spaces Moved 1105 | 60 187 239 541 78 Core 4 | 4 . . . . Treads 212 | . . . 136 76 Legs . | . . . . . Wheels 170 | 56 114 . . . Hover 719 | . 73 239 405 2 Flight . | . . . . . Fastest Speed 50 | 50 90 116 116 116 Average Speed 120 | 87 100 116 127 159 Slowest Speed 185 | 90 185 116 160 180 Overloaded Moves . | . . . . . Propulsion Burnouts . | . . . . . Robots Hopped . | . . . . . Cave-ins Triggered . | . . . . . Exploration Rate (%) 46 | 4 46 62 90 29 Regions Visited 4 Branch Regions 3 Pre-discovered Areas 1 | . . 1 . . Known Exits Taken . | . . . . . Unknown Exits Taken 4 | 1 1 1 1 . Scrap Searched 1 | . . 1 . . Spaces Dug . | . . . . . Terrain Destroyed 61 | . . . . 61 Melee . | . . . . . Projectile . | . . . . . AOE 61 | . . . . 61 Actions | -11 -10 -10 -10 -9 --------- Run | Scr Mat Min Exi Min Total 1330 | 75 221 364 575 95 Wait 139 | . 13 97 29 . Move 1101 | 59 186 238 540 78 Hop . | . . . . . Pick Up 17 | 5 7 2 1 2 Fast Attach 13 | 7 3 . . 3 Attach 1 | . . . . 1 Detach 1 | . . . . 1 Swap 7 | 1 . 1 4 1 Drop 15 | . 8 3 1 3 Fire 36 | 3 4 23 . 6 Melee . | . . . . . Ram . | . . . . . Kick . | . . . . . Crush . | . . . . . Escape Stasis . | . . . . . Rewire . | . . . . . Trap . | . . . . . Miscellaneous . | . . . . . Route ------- -11/Scrapyard -10/Materials -10/Mines -10/Exiles -9/Mines History --------- Turn | Location | Event 28 | -11/Scrapyard | Discovered new exit (range 15) 78 | -11/Scrapyard | Entered Materials 178 | -10/Materials | Discovered new exit (range 9) 249 | -10/Materials | Core integrity fell below 50% 301 | -10/Materials | Build established: Mutant 306 | -10/Materials | Entered Mines 306 | -10/Mines | Accompanied by 1 ally 309 | -10/Mines | Assisted by bots powering up and referring to "LRC-V3" 517 | -10/Mines | Destroyed YI-UF0 719 | -10/Mines | Learned location of Storage (-7) 738 | -10/Mines | Deemed a non-threat by the Exiles lab entrance 739 | -10/Mines | Discovered new exit (range 5) 748 | -10/Mines | Entered Exiles 748 | -10/Exiles | Found Exiles lab abandoned 748 | -10/Exiles | Accompanied by 1 ally 1440 | -10/Exiles | Discovered new exit (range 12) 1470 | -10/Exiles | Entered Mines 1470 | -9/Mines | Accompanied by 1 ally 1487 | -9/Mines | Met a Derelict shopkeep closing up shop 1513 | -9/Mines | Found YI-UF0's Doublenader 1562 | -9/Mines | Assembled infested the area 1611 | -9/Mines | Core integrity fell below 20% 1616 | -9/Mines | Destroyed by as-97454 with Assembled Heavy Rifle Last Messages --------------- 01504_ Player 2 attaches Adv. Assault Cannon. 01506_ Acquired Lgt. Treads. 01513_ Acquired YI-UF0's Doublenader. 01515_ Acquired Coolant Injector. Player 2: "In case things go from bad to worse I have an extra Energy Filter and Mni. Grenade Launcher here." 01562_ ALERT: Infestation in the mines, dispatching Demolisher response squad. 01579_ T-07 Excavator destroyed. 01579_ Slug penetrates Wall. 01582_ as-54525 destroyed. 01582_ as-95728 destroyed. 01582_ as-37427 destroyed. 01587_ Acquired 3 matter. 01594_ Player 2 drops Com. Wheel. 01594_ Player 2 acquires Wheel. 01603_ The unstable cave ceiling collapses. 01610_ as-09556 destroyed. 01614_ The unstable cave ceiling collapses. 01614_ R-06 Scavenger collects Sml. Matter Pod. 01615_ The unstable cave ceiling collapses. Map ----- +----------------------------------------------------+ | | | | | | | | | | | | | | | | | | | | | ?????????????????????????????????????????????????? | | ?????????????????????????????????????????????????? | | ????????????????????????????? ?????????????????? | | ????????????????????????????? ? ??????????????? | | ????????????????????????????# # # ?????????????? | | ???????????????????????????? ????????????? | | ???????????????????????????? ?????????????? | | ??????????????????????????? # # ?????????????? | | ??????????????????????????? ??????????????? | | ??????????????????????????? ???????????????? | | ??????????????????????????# ????????????????? | | ????????????????????????## ??????????????????? | | ??????????????????###??## r#???????????????????? | | ?????????????????## #### = ##???????????????????? | | ????????????????## * #???????????????????? | | ????????????????# # <@ ##??????????????????? | | ????????????????# #??????????????????? | | ????????????????# @ #??????????????????? | | ????????????????# # #??????????????????? | | ????????????????# ## ##??????????????????? | | ????????????????# # #???????????????????? | | ????????????????# ???????????????????? | | ????????????????##" ??????????????????? | | ????????????????### ?????????????????? | | ???????????????## #?????????????????? | | ???????????????# * ## a ?????????????????? | | ???????????????# =##? ###????????????????? | | ???????????????## #?? #??????????????????? | | ????????????????### #?? ! # #??????????????????? | | ??????????????????# #??# ! ???????????????????? | | ??????????????????# #???###?????????????????????? | | ??????????????????# #???????????????????????????? | | ??????????????????# #???????????????????????????? | | ?????????????????## ##??????????????????????????? | | ?????????????????# #####??????????????????????? | | ?????????????????# ##?????????????????????? | | ?????????????????## #?????????????????????? | | ???????????###????### #?????????????????????? | | ??????????## ##????## ##?????????????????????? | | ??????????# ##???## #??????????????????????? | +----------------------------------------------------+ Best States ------------- Heat Dissipation 25 Energy Generation 16 Energy Capacity 290 Matter Stores 300 Matter Capacity 300 Sight Range 16 Terrain Scan Density 10 Evasion (%) 42 Recoil Reduction 2 Item Schematics ----------------- None Robot Schematics ------------------ None Fabricated ------------ Nothing Alien Tech Used ----------------- None Achievements -------------- None Challenges ------------ None Player 2 | -11 -10 -10 -10 -9 ---------- Run | Scr Mat Min Exi Min Slots Evolved . | . . . . . Power . | . . . . . Propulsion . | . . . . . Utility . | . . . . . Weapon . | . . . . . Parts Attached 26 | . 16 7 1 2 Parts Lost 8 | . 7 1 . . Damage Taken 666 | . 533 101 . 32 Core 196 | . 164 . . 32 Player 2/Cogmind (%) 78 | . 100 . . 56 Absorbed by Shields . | . . . . . Damage Inflicted 2278 | . 2006 219 . 53 Player 2/Cogmind (%) 72 | . 97 36 . 12 Combat Hostiles Destroyed 13 | . 11 1 . 1 Player 2/Cogmind (%) 61 | . 91 25 . 20 Game ------ Seed CoreBladeCharger Manual? 0 Play Time 00:19:04 Cumulative 84.4 hours Start 2020.07.20 @ 02:58:04 End 2020.07.20 @ 03:15:06 Sessions 1 Manual Loads 0 Difficulty Rogue Special Mode AFD2020/Player2 Game No. 40 Rogue 40 Adventurer 0 Explorer 0 Win Type - Total 1 Types 0/0/0/1/0/0/0 Lore% 60 Gallery% 52 Achievement% 55 Wizard Run 0 Options --------- ASCII 0 Keyboard 0 Movement Numpad Keybinds 0 Fullscreen 1 Font 14/SmallcapsGlow Map View 84x54 Tactical HUD 1 Map Filters NONE Filters NONE Steam 1 RUN: 26f4fcac-23d3-425c-ac2f-8fec92813cc5